{"text_format":"1","workbook":"xlsx","n_sheets":3,"sheets":["الطواريء","Feuil1","Feuil2"],"not_rendered":{"charts":0,"images":0,"macros":1,"external_links":0,"defined_names":13,"comments":0,"pivot_tables":0},"unopened":[],"bounds":{"document_bytes":16777216,"sheet_cells":100000,"rows_first":2000,"rows_last":500,"rows_between":2000,"halvings":0,"cell_chars":16384,"cell_head_chars":4096},"cells_cut":0,"cells_raw":0,"read":"whole","date_system":"1900"}

{"sheet":"الطواريء","index":0,"n_rows":50,"n_cols":31,"rows_kept":50,"cut":false,"hidden":false,"merged":[[0,0,0,6],[0,16,0,22],[0,8,0,14],[0,24,0,30]]}
["الدفاع المدني ",null,null,null,null,null,null,null,"الامن والنظام العام",null,null,null,null,null,null,null,"التكفل الطبي والنفسي",null,null,null,null,null,null,null,"الاعلام"]
["م ","الاسم واللقب","العنوان","هاتف المكتب","الهاتف الشخصي","الهيئة ","المنصب ",null,"م","الاسم واللقب","العنوان","هاتف المكتب","الهاتف الشخصي","الهيئة ","المنصب ",null,"م","الاسم واللقب","العنوان","هاتف المكتب","الهاتف الشخصي","الهيئة ","المنصب ",null,"م","الاسم واللقب","العنوان","هاتف المكتب","الهاتف الشخصي","الهيئة ","المنصب "]
[1,"fateh","ادرار",45000000,999999999,"الدفاع المدني","مسؤول النظام",null,1,"طاهر سخري","البليدة",null,null,"الامن","مسؤول النظام",null,null,"حسين علي",null,null,null,"المستشفى المركزي ","مسؤول النظام",null,null,"علي ",null,null,2121212,"هيئة الاذاعة","مسؤول النظام"]
[2,"رياض الجزائري","اليمن",45000000,77777777,"الدفاع المدني","المداوم",null,2,"مروان علي","وهران",null,null,"الجيش","مسؤول النظام",null,null,"ابراهيم متولي ",null,null,null,"الهلال الاحمر ","مسؤول النظام",null,null,"اكرم ",null,null,1212,"دار البلدية ","مسؤول النظام"]
[3,"احمد علي","سكيكدة",47000000,888888888,"الدفاع المدني","رئيس مخزن ",null,3,"علي كريم","قسنطينة ",null,null,"الشرطة","مسؤول النظام",null,null,"فاطمة وجدي",null,null,null,"الجمعية الخيرية ","مسؤول النظام",null,null,"جلال",null,null,21,"الصحافة الدولية ","مسؤول النظام"]
[null,null,null,null,null,null,null,null,4,"طه ياسين","الاردن ",null,null,"الامن","المستخلف الاول ",null,null,"محمد زكريا",null,null,null,"الهلال الاحمر ","المستخلف الاول ",null,null,"مصطفى ",null,null,121221,"هيئة الاذاعة","المستخلف الاول "]
[null,null,null,null,null,null,null,null,5,"متولي حسن ","مصر",null,null,"الشرطة","المداوم ",null,null,"اتتات",null,null,null,"المستشفى المركزي ","المداوم ",null,null,"ادهم ",null,null,212312,"دار البلدية ","المداوم "]
[null,null,null,null,null,null,null,null,6,"نبيل سالم ","مصر",null,null,"الشرطة","المخزن "]
[null,null,null,null,null,null,null,null,{"$f":"O9","v":0}]
[null,null,null,null,null,null,null,null,0]
[null,null,null,null,null,null,null,null,0]
[null,null,null,null,null,null,null,null,0]
[null,null,null,null,null,null,null,null,0]
[null,null,null,null,null,null,null,null,0]
[null,null,null,null,null,null,null,null,0]
[null,null,null,null,null,null,null,null,0]
[null,null,null,null,null,null,null,null,0]
[null,null,null,null,null,null,null,null,0]
[null,null,null,null,null,null,null,null,0]
[null,null,null,null,null,null,null,null,0]
[null,null,null,null,null,null,null,null,0]
[null,null,null,null,null,null,null,null,0]
[null,null,null,null,null,null,null,null,0]
[null,null,null,null,null,null,null,null,0]
[null,null,null,null,null,null,null,null,0]
[null,null,null,null,null,null,null,null,0]
[null,null,null,null,null,null,null,null,0]
[null,null,null,null,null,null,null,null,0]
[null,null,null,null,null,null,null,null,0]
[null,null,null,null,null,null,null,null,0]
[null,null,null,null,null,null,null,null,0]
[null,null,null,null,null,null,null,null,0]
[null,null,null,null,null,null,null,null,0]
[null,null,null,null,null,null,null,null,0]
[null,null,null,null,null,null,null,null,0]
[null,null,null,null,null,null,null,null,0]
[null,null,null,null,null,null,null,null,0]
[null,null,null,null,null,null,null,null,0]
[null,null,null,null,null,null,null,null,0]
[null,null,null,null,null,null,null,null,0]
[null,null,null,null,null,null,null,null,0]
[null,null,null,null,null,null,null,null,0]
[null,null,null,null,null,null,null,null,0]
[null,null,null,null,null,null,null,null,0]
[null,null,null,null,null,null,null,{"$f":"O45","v":0},0]
[null,null,null,null,null,null,null,0,0]
[null,null,null,null,null,null,null,0,0]
[null,null,null,null,null,null,null,0,0]
[null,null,null,null,null,null,null,0,0]
[null,null,null,null,null,null,null,0,0]

{"sheet":"Feuil1","index":1,"n_rows":18,"n_cols":7,"rows_kept":18,"cut":false,"hidden":false,"merged":[]}
[]
[]
[]
[]
[]
[]
[]
[null,null,null,null,null,null,"مسؤول النظام"]
[null,null,null,null,null,null,"المستخلف الاول"]
[null,null,null,null,null,null,"المداوم"]
[null,null,null,null,null,null,"المخزني"]
[]
[]
[]
[]
[]
[null,null,null,null,null,"الطواريء"]
[null,null,null,null,null,"النجدة"]

{"sheet":"Feuil2","index":2,"n_rows":8,"n_cols":12,"rows_kept":8,"cut":false,"hidden":false,"merged":[[1,3,1,5],[1,7,1,9]]}
[]
[null,null,null,"مسؤول الهيئة",null,null,null,"نائب مسؤول الهيئة "]
[]
[null,"*","الاسم واللقب","العنوان","هاتف المكتب","الهاتف الشخصي","الهيئة ","الاسم واللقب","العنوان","هاتف المكتب","الهاتف الشخصي","الهيئة "]
[null,"الدفاع المدني"]
[null,"ا لامن والنظام العام"]
[null,"التكفل الطبي والنفسي "]
[null,"ا لاعلام"]